bitfinex-derivatives/quotes_SOLF0:USTF0_20250228
["timestamp","ask_amount","ask_price","bid_price","bid_amount"]
[1740735015342,210.8793,132.9,132.78,21.15460848]
[1740735015546,7.5342,132.84,132.78,21.15460848]
[1740735015740,3.8604,132.89,132.72,7.5404]
[1740735015939,17.4,132.88,132.78,21.15460848]
[1740735016138,0.05379731,132.82,132.8,0.0564105]
[1740735016340,0.05379731,132.82,132.62,17.42]
[1740735016539,17.38,132.83,132.77,21.15460848]
[1740735016744,7.535,132.82,132.77,21.15460848]
[1740735017344,7.535,132.82,132.78,21.15460848]
[1740735017545,3.8604,132.89,132.78,0.05685008]
[1740735017546,0.04939433,132.81,132.78,0.05685008]
[1740735017941,207.32,132.88,132.8,21.15460848]
[1740735018245,207.32,132.88,132.83,21.15460848]
[1740735018444,0.05343923,132.85,132.83,21.15460848]
[1740735018642,0.05343923,132.85,132.84,0.05414539]
[1740735018844,0.05343923,132.85,132.84,21.20875387]
[1740735019037,5.6993,132.9,132.84,21.15460848]
[1740735019241,3.6694,132.96,132.89,21.15460848]
[1740735019449,17.26,132.95,132.89,21.15460848]
[1740735019636,24.7875,132.95,132.89,21.15460848]
[1740735019842,17.26,132.95,132.89,21.15460848]
[1740735020041,17.26,132.95,132.91,0.05272125]
[1740735020042,0.05214938,132.93,132.91,0.05272125]
[1740735020646,0.05214938,132.93,132.72,222.38]
[1740735020845,0.05214938,132.93,132.89,21.15460848]
[1740735021038,17.26,132.95,132.9,21.15460848]
[1740735021243,205.04,133.06,132.93,21.15460848]
[1740735021545,205.04,133.06,132.83,205.04]
[1740735021546,26.8192,133.03,132.95,21.15460848]
[1740735021741,26.8192,133.03,132.83,205.04]
[1740735021937,0.05433564,133.0,132.93,21.15460848]
[1740735022142,1.5035333,133.02,132.91,21.15460848]
[1740735022143,7.5273,132.96,132.91,21.15460848]
[1740735022339,1.5035333,133.02,132.89,21.15460848]
[1740735022538,1.5035333,133.02,132.88,21.15460848]
[1740735022738,7.529,132.93,132.88,21.15460848]
[1740735022944,24.669,132.93,132.88,21.15460848]
[1740735023152,24.669,132.93,132.89,0.05431053]
[1740735023153,0.04771876,132.92,132.89,0.05431053]
[1740735023655,0.04771876,132.92,132.91,21.15460848]
[1740735023951,0.04771876,132.92,132.89,0.05431053]
[1740735024146,0.04771876,132.92,132.9,21.15460848]
[1740735024346,0.04771876,132.92,132.89,0.05431053]
[1740735025542,0.04771876,132.92,132.9,21.15460848]
[1740735025940,0.04771876,132.92,132.89,0.05431053]
[1740735026150,0.04771876,132.92,132.91,21.15460848]
[1740735026546,1.876e-05,132.92,132.91,24.91460848]
[1740735026743,1.876e-05,132.92,132.91,28.68430848]
[1740735027653,1.876e-05,132.92,132.91,32.44430848]
[1740735027845,1.5035333,133.02,132.95,7.527]
[1740735028048,3.8553,133.14,133.0,21.15458972]
[1740735028247,19.83800124,133.13,133.0,21.15458972]
[1740735028447,18.48229099,133.13,132.85,204.9]
[1740735028652,25.47813242,133.12,132.97,21.15458972]
[1740735028950,7.5251,133.0,132.97,21.15458972]
[1740735029152,16.96,133.02,132.97,21.15458972]
[1740735029352,16.94,133.02,132.97,0.05280561]
[1740735029554,7.5252,132.99,132.97,0.05280561]
[1740735029747,0.05252866,133.01,132.97,0.05280561]
[1740735029946,7.5255,132.99,132.97,0.05280561]
[1740735030351,0.05252866,133.01,132.97,0.05280561]
[1740735030957,0.05252866,133.01,132.98,21.15458972]
[1740735031157,7.5247,133.0,132.97,0.05280561]
[1740735031349,0.05252866,133.01,132.99,21.15458972]
[1740735031554,0.05252866,133.01,132.97,0.05280561]
[1740735031555,0.05252866,133.01,133.0,21.15458972]
[1740735032558,0.05252866,133.01,133.0,32.43918972]
[1740735032757,2.866e-05,133.01,133.0,32.43918972]
[1740735033458,5.7251,133.14,133.0,3.76]
[1740735033757,5.7251,133.14,133.1,21.15456106]
[1740735033955,5.7251,133.14,133.09,21.15456106]
[1740735034152,17.48792374,133.17,133.08,21.15456106]
[1740735034356,7.5192,133.1,133.08,21.15456106]
[1740735034656,0.05393953,133.14,133.11,0.05378946]
[1740735034960,17.48792374,133.17,132.97,204.8]
[1740735035154,0.05338715,133.14,132.97,204.8]
[1740735035454,7.5177,133.13,133.08,7.52]
[1740735035663,18.98976349,133.17,133.11,21.15456106]
[1740735035857,1.50183975,133.17,133.11,21.15456106]
[1740735036059,1.50183975,133.17,133.13,21.15456106]
[1740735036259,1.50183975,133.17,132.97,221.54]
[1740735036260,1.50183975,133.17,133.16,21.15456106]
[1740735036561,7.5134,133.2,133.16,21.15456106]
[1740735036750,0.05437893,133.18,133.17,21.15456106]
[1740735037154,7.5149,133.18,133.16,0.04829666]
[1740735037351,0.0563396,133.19,133.17,21.15456106]
[1740735037558,0.0563396,133.19,133.18,21.15456106]
[1740735037959,16.74,133.22,133.17,0.05545803]
[1740735038162,0.04933146,133.2,132.97,221.54]
[1740735038356,0.04933146,133.2,133.12,21.15456106]
[1740735038552,16.74,133.22,133.11,21.15456106]
[1740735038962,16.74,133.22,133.14,21.15456106]
[1740735039157,16.74,133.22,132.97,204.8]
[1740735039360,16.74,133.22,133.14,21.15456106]
[1740735039864,7.5173,133.13,132.97,204.8]
[1740735040062,0.05756481,133.19,133.15,21.15456106]
[1740735040259,16.74,133.22,133.15,21.15456106]
[1740735040463,7.515,133.17,132.97,204.8]
[1740735040771,16.74,133.22,133.14,21.15456106]
[1740735040959,16.74,133.22,133.12,21.15456106]
[1740735040960,7.5172,133.14,133.12,21.15456106]
[1740735041161,190.0,133.21,133.11,21.15456106]
[1740735041355,0.0492194,133.14,133.12,0.05015467]
[1740735041561,16.62,133.16,132.98,3.805]
[1740735041763,16.62,133.16,133.11,21.15456106]
[1740735042062,0.05582572,133.14,133.12,0.05149421]
[1740735042264,7.5173,133.13,133.12,0.05149421]
[1740735042462,16.62,133.16,132.98,3.805]
[1740735042761,0.05672909,133.14,133.11,0.05149421]
[1740735043061,16.62,133.16,133.08,21.15456106]
[1740735043260,0.04997105,133.14,133.11,0.04875007]
[1740735043456,0.04997105,133.14,133.06,21.15456106]
[1740735043660,7.605,133.15,133.05,21.15456106]
[1740735043862,3.8352,133.14,133.05,21.15456106]
[1740735044060,193.8352,133.14,133.05,21.15456106]
[1740735044262,190.0,133.13,132.98,3.805]
[1740735044461,190.0,133.12,133.03,21.15456106]
[1740735044661,190.0,133.12,132.98,3.805]
[1740735044864,0.05751447,133.07,133.03,21.15456106]
[1740735045164,7.5217,133.06,133.03,21.15456106]
[1740735045365,16.59751447,133.07,132.98,3.805]
[1740735045565,7.5219,133.05,133.03,21.15456106]
[1740735045766,16.54,133.07,133.03,21.15456106]
[1740735046066,0.0506169,133.05,133.03,21.15456106]
[1740735046268,0.0506169,133.05,133.04,21.15456106]
[1740735046667,0.0506169,133.05,132.98,3.805]
[1740735046867,0.0506169,133.05,133.03,21.15456106]
[1740735047568,0.0506169,133.05,132.98,3.805]
[1740735047765,0.0506169,133.05,132.87,204.54]
[1740735047966,0.0506169,133.05,132.95,21.15456106]
[1740735048269,3.6618,133.07,132.88,3.8016]
[1740735048270,190.0,133.06,132.88,3.8016]
[1740735048464,20.1018,133.07,132.88,3.8016]
[1740735048670,20.1018,133.07,133.02,21.15456106]
[1740735048862,0.0510157,132.99,132.98,7.5257]
[1740735049069,16.44,133.07,133.05,21.15456106]
[1740735049569,24.127,133.13,133.06,21.15456106]
[1740735050170,24.127,133.13,132.88,20.2416]
[1740735050468,0.05197801,133.11,133.03,21.15456106]
[1740735050670,0.05197801,133.11,133.04,21.15456106]
[1740735050867,24.127,133.13,133.06,21.15456106]
[1740735051068,58.39404866,134.7,133.12,21.15456106]
[1740735051069,16.38,133.24,133.12,21.15456106]
[1740735051270,7.3282,133.21,133.12,21.15456106]
[1740735051773,0.04863518,133.18,133.02,204.58]
[1740735051966,7.5189,133.11,133.07,21.15456106]
[1740735052271,16.52,133.11,133.06,21.15456106]
[1740735052461,16.52,133.11,133.01,3.8738]
[1740735052462,0.050067,133.1,133.01,3.8738]
[1740735052666,0.050067,133.1,133.09,21.15456106]
[1740735052866,16.52,133.11,133.09,21.15456106]
[1740735053067,16.52,133.11,133.04,7.5223]
[1740735053267,16.57619039,133.11,133.08,21.15456106]
[1740735053465,16.57619039,133.11,133.1,21.15456106]
[1740735053761,16.52,133.11,133.07,21.15456106]
[1740735053966,16.52,133.11,133.06,21.15456106]
[1740735054166,16.52,133.11,133.07,21.15456106]
[1740735054570,0.04952813,133.1,133.07,21.15456106]
[1740735054964,0.04952813,133.1,133.09,21.15456106]
[1740735055468,16.42,133.2,133.09,24.91456106]
[1740735055677,0.04911405,133.11,133.01,3.8738]
[1740735055972,7.5155,133.17,133.14,21.15456106]
[1740735056167,204.58,133.22,133.14,21.15456106]
[1740735056369,16.42,133.21,133.15,21.15456106]
[1740735056674,20.1732,133.21,133.12,21.15456106]
[1740735056872,3.8438,133.2,133.13,21.15456106]
[1740735057072,0.04883152,133.18,133.15,0.05059222]
[1740735057577,0.04883152,133.18,133.16,21.15456106]
[1740735058373,7.56373152,133.18,133.15,0.05059222]
[1740735058568,0.04883152,133.18,133.15,0.05059222]
[1740735059366,7.5155,133.17,133.15,0.05059222]
[1740735059568,0.04883152,133.18,133.15,21.20515328]
[1740735059867,7.5144,133.18,133.17,21.15456106]
[1740735060074,7.19199106,133.18,133.16,21.15456106]
[1740735060271,16.32,133.23,133.16,21.15456106]
[1740735060471,16.32,133.23,133.15,0.05059222]
[1740735060671,16.32,133.23,133.11,7.5183]
[1740735060872,16.32,133.23,133.15,21.15456106]
[1740735061174,0.05465504,133.18,133.16,0.05671873]
[1740735061574,7.5141,133.19,133.16,0.05671873]
[1740735061875,0.05648175,133.18,133.16,0.05671873]
[1740735062174,16.32,133.23,133.16,0.05671873]
[1740735062575,7.5162,133.15,133.08,7.5196]
[1740735062768,0.0538931,133.18,133.13,21.15456106]
[1740735062969,191.50127608,133.22,133.01,3.8738]
[1740735062970,7.7941,133.21,133.1,21.15456106]
[1740735063172,7.7941,133.21,133.13,21.15456106]
[1740735063368,7.7941,133.21,133.16,21.15456106]
[1740735063769,7.7941,133.21,133.17,0.04270501]
[1740735063974,0.05040453,133.2,133.13,21.15456106]
[1740735064174,0.05040453,133.2,133.02,0.1066]
[1740735064175,7.7941,133.21,133.12,21.15456106]
[1740735064578,1.5015015,133.2,133.02,0.1066]
[1740735064777,1.5015015,133.2,133.1,21.15456106]
[1740735064981,1.5015015,133.2,133.13,21.15456106]
[1740735065168,1.5015015,133.2,133.14,21.15456106]
[1740735065372,0.04821884,133.16,133.02,0.1066]
[1740735065573,0.04821884,133.16,133.14,21.15456106]
[1740735065871,1.5015015,133.2,133.1,21.15456106]
[1740735066078,1.5015015,133.2,133.02,0.1066]
[1740735066079,0.05262688,133.16,133.09,21.15456106]
[1740735066375,206.2,133.19,133.08,21.15456106]
[1740735066582,1.50172698,133.18,133.06,21.15456106]
[1740735066770,0.0557683,133.14,133.04,21.15456106]
[1740735066974,0.0557683,133.14,133.05,21.15456106]
[1740735067177,1.50172698,133.18,133.05,21.15456106]
[1740735067378,0.0494032,133.11,133.05,21.15456106]
[1740735067573,0.0494032,133.11,133.01,3.8738]
[1740735067574,16.2294032,133.11,133.01,3.8738]
[1740735067778,7.5208,133.07,133.03,21.15456106]
[1740735067983,7.5823,133.1,133.03,21.15456106]
[1740735068177,0.05157623,133.06,133.03,21.15456106]
[1740735068378,0.05157623,133.06,132.97,208.1244]
[1740735068582,0.05157623,133.06,133.02,21.15456106]
[1740735068779,190.0,133.15,133.05,21.15456106]
[1740735068780,7.5171,133.14,133.05,21.15456106]
[1740735068979,7.7398,133.14,132.97,208.1244]
[1740735069180,0.054346,133.11,133.06,21.15456106]
[1740735069481,3.8732,133.13,132.97,208.1244]
[1740735069482,3.8732,133.13,133.08,21.15456106]
[1740735069885,16.12,133.17,133.12,21.15456106]
[1740735070085,17.62172698,133.18,133.12,21.15456106]
[1740735070282,0.05653759,133.16,132.98,16.12]
[1740735070478,0.05653759,133.16,133.12,21.15456106]
[1740735070691,17.62172698,133.18,133.12,21.15456106]
[1740735070883,0.04990975,133.15,133.12,21.15456106]
[1740735071084,0.04990975,133.15,132.98,16.12]
[1740735071286,0.04990975,133.15,133.14,21.15456106]
[1740735071483,1.50172698,133.18,133.14,21.15456106]
[1740735071677,0.0538477,133.16,132.98,16.12]
[1740735071879,0.0538477,133.16,133.14,21.15456106]
[1740735072085,1.50172698,133.18,133.15,21.15456106]
[1740735072383,0.05775556,133.16,132.98,16.12]
[1740735072789,1.50172698,133.18,133.15,21.15456106]
[1740735073083,3.9867,133.2,133.16,21.15456106]
[1740735073381,7.56762481,133.18,133.14,21.15456106]
[1740735073587,0.05272481,133.18,133.08,7.5197]
[1740735073782,0.05272481,133.18,133.1,21.15456106]
[1740735073982,16.08,133.18,133.12,7.5178]
[1740735074284,16.08,133.18,133.14,21.15456106]
[1740735074485,0.05530233,133.16,133.14,21.15456106]
[1740735074690,0.05530233,133.16,132.97,218.33253113]
[1740735074890,16.08,133.18,133.11,21.15456106]
[1740735075077,23.5945,133.18,133.11,21.15456106]
[1740735075281,0.05442299,133.16,133.0,10.20813113]
[1740735075485,0.05442299,133.16,133.09,21.15456106]
[1740735075685,7.6835,133.17,133.08,21.15456106]
[1740735075886,0.05216176,133.14,133.08,21.15456106]
[1740735076188,0.05216176,133.14,133.0,10.20813113]
[1740735076385,7.5173,133.13,133.06,21.15456106]
[1740735076787,0.05297221,133.08,133.06,21.15456106]
[1740735076989,16.02,133.1,133.06,21.15456106]
[1740735077188,0.05607465,133.08,133.06,21.15456106]
[1740735077482,0.05607465,133.08,133.07,21.15456106]
[1740735077686,16.02,133.1,133.07,21.15456106]
[1740735077887,16.02,133.1,133.0,10.20813113]
[1740735078078,16.02,133.1,133.07,21.15456106]
[1740735078484,16.06876803,133.1,133.03,7.5226]
[1740735078684,16.06876803,133.1,133.05,21.15456106]
[1740735079189,23.58776803,133.1,132.97,208.1244]
[1740735079385,23.58776803,133.1,133.04,21.15456106]
[1740735079582,23.539,133.1,133.04,21.15456106]
[1740735079781,0.05304986,133.08,133.04,21.15456106]
[1740735079985,0.05304986,133.08,132.97,208.1244]
[1740735080189,16.02,133.1,133.05,21.15456106]
[1740735080389,0.05003223,133.04,132.97,208.1244]
[1740735080583,16.02,133.1,133.03,21.15456106]
[1740735080778,7.928e-05,133.02,132.97,211.8844]
[1740735081093,15.92,133.13,133.09,21.15456106]
[1740735081284,7.6835,133.17,133.12,21.15456106]
[1740735081481,27.4202,133.2,132.97,224.0444]
[1740735081685,56.46062766,133.2,133.17,21.15456106]
[1740735081886,56.46062766,133.2,133.18,21.15456106]
[1740735082186,56.51096296,133.2,133.17,21.20446106]
[1740735082391,56.51096296,133.2,133.17,0.0499]
[1740735082684,56.51096296,133.2,133.12,7.5177]
[1740735082685,40.54062766,133.2,133.19,21.15456106]
[1740735082888,40.54062766,133.2,133.05,15.88]
[1740735082889,40.594173,133.2,133.17,0.0499]
[1740735083190,40.54062766,133.2,133.17,21.15456106]
[1740735083390,40.58857065,133.2,133.17,0.0499]
[1740735084194,0.04794299,133.2,133.17,0.0499]
[1740735085793,7.5141,133.19,133.17,0.0499]
[1740735085989,0.04794299,133.2,133.17,0.0499]
[1740735085990,15.86794299,133.2,133.17,0.0499]
[1740735086489,7.5144,133.18,133.17,0.0499]
[1740735086890,15.86794299,133.2,133.06,3.7873]
[1740735087091,15.82,133.2,133.13,21.15456106]
[1740735087292,15.82,133.2,133.11,21.15456106]
[1740735088195,0.05168656,133.17,133.11,21.15456106]
[1740735088388,7.5157,133.16,133.12,21.15456106]
[1740735088695,15.82,133.2,133.13,21.15456106]
[1740735088894,15.82,133.2,133.14,21.15456106]
[1740735088895,0.05359561,133.15,133.14,21.15456106]
[1740735089091,15.82,133.2,133.14,21.15456106]
[1740735089295,0.05662156,133.16,133.14,21.15456106]
[1740735089687,0.05662156,133.16,133.11,7.5181]
[1740735089688,0.05662156,133.16,133.06,3.6412]
[1740735089894,15.82,133.2,133.13,21.15456106]
[1740735090198,7.516,133.16,133.13,21.15456106]
[1740735090498,0.05188573,133.18,133.13,21.15456106]
[1740735091302,0.05188573,133.18,133.06,3.6412]
[1740735091504,3.8193,133.19,133.11,21.15456106]
[1740735091695,0.05443135,133.13,133.1,21.15456106]
[1740735091891,3.8193,133.19,133.12,21.15456106]
[1740735092094,0.04972912,133.13,133.12,21.15456106]
[1740735092297,3.8193,133.19,133.12,21.15456106]
[1740735092700,0.05103486,133.17,133.07,7.5203]
[1740735092900,3.8193,133.19,133.1,21.15456106]
[1740735093211,0.05160491,133.13,133.08,21.15456106]
[1740735093407,15.64,133.12,133.07,21.15456106]
[1740735093905,0.04801035,133.11,133.08,21.15456106]
[1740735094101,15.62,133.15,133.09,21.15456106]
[1740735094306,0.05089467,133.11,133.09,21.15456106]
[1740735094805,7.5196,133.09,133.04,7.5221]
[1740735095007,7.5196,133.09,133.08,21.15456106]
[1740735095301,7.57277074,133.08,133.07,21.15456106]
[1740735095501,15.62,133.15,133.06,21.15456106]
[1740735095697,0.05671509,133.09,133.05,21.15456106]
[1740735095896,7.5212,133.06,133.05,21.15456106]
[1740735096100,15.6,133.07,132.95,40.83252452]
[1740735096306,15.6,133.06,133.01,21.15456106]
[1740735096510,0.05421869,133.02,132.99,21.15456106]
[1740735096702,15.6,133.06,132.97,21.15456106]
[1740735096902,0.05380683,133.02,132.97,21.15456106]
[1740735097809,0.05380683,133.02,132.95,40.83252452]
[1740735098009,0.05380683,133.02,132.95,61.98708558]
[1740735098207,0.05380683,133.02,132.96,21.15456106]
[1740735098614,7.5258,132.98,132.95,40.83252452]
[1740735098815,15.58,132.97,132.95,40.83252452]
[1740735099316,15.63512577,132.97,132.9,7.5302]
[1740735099610,15.63512577,132.97,132.93,21.15456106]
[1740735100019,15.58,132.97,132.88,3.9416]
[1740735100207,0.05388876,132.96,132.95,21.15456106]
[1740735100403,0.05388876,132.96,132.88,3.9416]
[1740735100609,7.58078876,132.96,132.91,21.15456106]
[1740735100807,7.5269,132.96,132.91,21.15456106]
[1740735101008,15.58,132.97,132.85,40.83252452]
[1740735101009,0.05238185,132.95,132.85,40.83252452]
[1740735101305,15.58,132.97,132.85,40.83252452]
[1740735101616,15.58,132.97,132.93,21.15456106]
[1740735101814,0.0516637,132.92,132.85,40.83252452]
[1740735102017,7.527,132.96,132.92,21.15456106]
[1740735102309,15.58,132.97,132.91,21.15456106]
[1740735102518,15.58,132.97,132.82,3.8764]
[1740735102519,0.05731879,132.95,132.82,3.8764]
[1740735103014,0.05630642,132.9,132.82,3.8764]
[1740735103509,0.05356451,132.87,132.73,214.78813113]
[1740735103717,0.05356451,132.87,132.81,7.5353]
[1740735103914,3.862,132.88,132.74,3.8041]
[1740735104214,7.7985,132.88,132.74,3.8041]
[1740735104414,0.0481672,132.82,132.74,3.8041]
[1740735104608,7.7985,132.88,132.74,3.8041]
[1740735104609,3.9415,132.87,132.74,3.8041]
[1740735104809,0.04961803,132.79,132.75,7.5386]
[1740735105004,0.04961803,132.79,132.74,3.8041]
[1740735105005,30.14922828,133.07,132.76,15.66]
[1740735105210,30.14922828,133.07,132.77,1.33245699]
[1740735105415,30.14922828,133.07,132.77,2.83882137]
[1740735105718,30.14922828,133.07,132.8,15.0717]
[1740735105911,30.14922828,133.07,132.81,2.99406768]
[1740735106106,30.14922828,133.07,132.92,0.04961803]
[1740735106307,8.01e-06,132.94,132.92,0.04961803]
[1740735106513,10.39139938,133.06,132.88,204.62]
[1740735106708,15.64,133.05,132.88,204.62]
[1740735107216,10.39139938,133.06,132.88,204.62]
[1740735107418,0.05256333,132.98,132.95,0.0502922]
[1740735107615,15.66,132.97,132.95,0.0502922]
[1740735107815,15.66,132.97,132.82,5.30019731]
[1740735108015,15.71695707,132.97,132.95,0.05461528]
[1740735108310,15.66,132.97,132.87,7.5314]
[1740735108511,15.66,132.97,132.82,3.7944]
[1740735109515,0.05619866,132.91,132.88,0.05000275]
[1740735110016,15.66,132.97,132.83,7.5337]
[1740735110318,0.05282544,132.91,132.88,0.05000275]
[1740735110819,15.66,132.97,132.78,204.62]
[1740735111010,2.86106077,132.96,132.88,0.05000275]
[1740735111218,0.05423759,132.91,132.88,0.05000275]
[1740735111416,1.50432493,132.95,132.78,204.62]
[1740735111620,0.04923626,132.91,132.88,0.05000275]
[1740735111917,15.6,132.94,132.78,204.62]
[1740735112119,15.6,132.94,132.88,0.05000275]
[1740735112314,0.05454962,132.91,132.88,0.05000275]
[1740735112517,0.05454962,132.91,132.78,204.62]
[1740735112714,0.05454962,132.91,132.88,0.05000275]
[1740735112918,15.6,132.94,132.88,0.05000275]
[1740735113116,0.05238005,132.91,132.78,204.62]
[1740735113314,0.05238005,132.91,132.9,0.05000275]
[1740735113522,15.6,132.94,132.9,0.05000275]
[1740735113711,15.6,132.94,132.78,204.62]
[1740735113915,0.05723324,132.92,132.91,0.04827202]
[1740735114219,15.58,133.0,132.82,15.58]
[1740735114520,23.2801,133.07,132.83,0.1434]
[1740735114822,28.73816836,133.07,132.83,0.1434]
[1740735115317,28.73816836,133.07,132.94,0.04905369]
[1740735115519,4.898e-05,132.96,132.95,7.5274]
[1740735115724,4.898e-05,132.96,132.95,7.6708]
[1740735115911,1.50296836,133.07,133.01,7.5238]
[1740735116316,56.12062766,133.09,132.95,0.1434]
[1740735116512,7.5202,133.08,132.99,7.5249]
[1740735116717,0.04769807,133.03,133.01,0.05678968]
[1740735117019,15.58,133.09,132.95,0.1434]
[1740735117420,15.58,133.09,133.01,0.05300535]
[1740735117622,0.05315682,133.03,133.01,0.05300535]
[1740735117922,15.58,133.09,132.89,204.7]
[1740735118126,17.0827425,133.09,133.01,0.04794821]
[1740735118326,17.0827425,133.09,132.89,204.7]
[1740735118627,0.04894642,133.06,132.98,0.05614021]
[1740735118926,7.5217,133.06,132.89,204.7]
[1740735119117,7.5217,133.06,133.01,0.05045323]
[1740735119118,0.05758347,133.03,133.01,0.05045323]
[1740735119324,190.0,133.08,132.9,3.8086]
[1740735119524,3.9702,133.05,132.9,3.8086]
[1740735119728,0.04807312,133.03,132.89,204.7]
[1740735120027,7.5247,133.0,132.92,7.5291]
[1740735120228,15.52,132.99,132.89,204.7]
[1740735120729,0.04930861,132.95,132.93,0.05506119]
[1740735122329,15.48,133.02,132.93,0.05506119]
[1740735122527,15.48,133.02,132.85,3.9156]
[1740735123131,191.35634605,133.01,132.81,204.66]
[1740735123329,7.5276,132.95,132.81,204.66]
[1740735123530,0.05574967,132.92,132.9,0.0579119]
[1740735123728,15.48,132.94,132.81,204.66]
[1740735123924,0.0560299,132.92,132.9,0.05157136]
[1740735124129,7.5946,132.93,132.76,0.1489]
[1740735124527,3.8326,132.92,132.76,0.1489]
[1740735125324,0.05744296,132.85,132.83,0.05152041]
[1740735125729,3.8326,132.92,132.76,0.1489]
[1740735125927,0.05658278,132.85,132.83,0.05229984]
[1740735126326,15.44,132.86,132.76,0.1489]
[1740735126528,0.05667555,132.85,132.83,0.05393654]
[1740735126829,0.05667555,132.85,132.73,204.7]
[1740735126830,15.44,132.86,132.73,204.8539]
[1740735127030,0.05640574,132.85,132.83,7.58593806]
[1740735127227,15.44,132.86,132.83,7.534]
[1740735127423,3.8326,132.92,132.83,0.05118579]
[1740735127627,22.9486,132.93,132.88,7.5313]
[1740735127932,11.4533,133.01,132.85,204.76]
[1740735128130,7.5266,132.97,132.91,7.5291]
[1740735128327,11.4533,133.01,132.86,208.4337]
[1740735128727,0.05281588,132.95,132.92,0.05278565]
[1740735128926,11.4533,133.01,132.92,0.05278565]
[1740735129134,10.39139938,133.03,132.91,7.5297]
[1740735129433,10.39139938,133.03,132.86,208.4337]
[1740735130432,5.992e-05,132.96,132.93,0.05646761]
[1740735130823,10.39139938,133.03,132.86,208.4337]
[1740735131323,7.5241,133.01,132.86,208.4337]
[1740735131534,0.05256072,132.96,132.93,0.0528427]
[1740735132036,190.0,133.06,132.86,208.4337]
[1740735132333,19.2796,133.08,132.91,7.5297]
[1740735132334,7.5259,132.98,132.91,7.5297]
[1740735132633,0.05063727,132.97,132.95,0.0490419]
[1740735132932,15.36,133.0,132.86,208.4337]
[1740735132933,7.5274,132.96,132.89,7.5308]
[1740735133133,3.9071,132.99,132.86,208.4337]
[1740735133336,0.05358932,132.97,132.95,0.04978094]
[1740735133532,7.5276,132.95,132.89,7.5308]
[1740735133726,3.9071,132.99,132.86,208.4337]
[1740735133932,0.05541009,132.97,132.86,204.76]
[1740735134132,7.5614,132.98,132.86,204.76]
[1740735134535,7.5283,132.94,132.88,7.5313]
[1740735135136,0.05746258,132.92,132.9,0.05089077]
[1740735135530,7.5614,132.98,132.86,204.76]
[1740735135728,0.05114989,132.92,132.9,0.05194212]
[1740735136135,7.5298,132.91,132.86,204.76]
[1740735136439,0.05475842,132.92,132.9,0.04996414]
[1740735136635,0.05475842,132.92,132.86,204.76]
[1740735136834,7.5614,132.98,132.9,0.05712076]
[1740735137337,0.0550807,132.95,132.78,204.7]
[1740735137538,3.8150807,132.95,132.78,204.7]
[1740735137734,7.5614,132.98,132.78,204.7]
[1740735138036,191.50409866,132.97,132.8,3.8326]
[1740735138238,2.86098496,132.96,132.78,204.7]
[1740735138446,1.50421179,132.96,132.78,204.7]
[1740735138846,0.05319449,132.88,132.86,0.05013328]
[1740735139146,7.5292,132.92,132.78,204.7]
[1740735139343,15.24,132.92,132.78,204.7]
[1740735139542,0.05487183,132.88,132.86,0.0480477]
[1740735140045,0.05487183,132.88,132.78,204.7]
[1740735140443,3.9017,132.9,132.78,204.7]
[1740735140844,3.9017,132.9,132.75,13.91193113]
[1740735141247,0.05630937,132.84,132.81,0.05458483]
[1740735141744,3.9017,132.9,132.86,7.5324]
[1740735141952,15.24,132.92,132.81,0.05147079]
[1740735142143,0.05390353,132.89,132.76,15.22]
[1740735142643,7.531,132.89,132.85,0.05378124]
[1740735142847,0.04904397,132.84,132.83,7.5338]
[1740735143351,15.24,132.92,132.75,3.7038]
[1740735143550,0.05054255,132.85,132.82,0.05285329]
[1740735143843,0.05054255,132.85,132.75,3.7038]
[1740735144048,190.0,132.91,132.75,3.7038]
[1740735144243,0.04938926,132.81,132.79,0.05551543]
[1740735144445,0.04938926,132.81,132.8,7.5356]
[1740735144744,190.0,132.91,132.71,40.99332452]
[1740735144950,0.05377872,132.82,132.81,7.5354]
[1740735145446,3.7055,132.9,132.71,44.94372452]
[1740735145647,0.05522716,132.83,132.8,0.05085443]
[1740735146042,3.7055,132.9,132.71,44.94372452]
[1740735146246,0.05584191,132.83,132.8,0.05125717]
[1740735146447,7.5352,132.82,132.8,0.05125717]